fUSD/lending_fUSD_20241224
["ID","MTS","AMOUNT","RATE_DAILY","PERIOD"]
[346496403,1735008555765,501.99531676,0.00013698,2]
[346496404,1735008555987,693.39,0.00013698,2]
[346496405,1735008556036,4566.2,0.00013698,2]
[346496406,1735008556233,693.39,0.00013972,2]
[346496407,1735008556312,4566.2,0.00013972,2]
[346496408,1735008556527,693.39,0.00014246,2]
[346496409,1735008556577,4566.2,0.00014246,2]
[346496410,1735008556802,693.39,0.0001452,2]
[346496411,1735008556868,4566.2,0.0001452,2]
[346496412,1735008556918,1864.42,0.00013698,2]
[346496413,1735008557107,4566.2,0.00014794,2]
[346496414,1735008557153,693.39,0.00014794,2]
[346496415,1735008557199,1864.42,0.00013972,2]
[346496416,1735008557433,1864.42,0.00014246,2]
[346496417,1735008557763,1864.42,0.0001452,2]
[346496418,1735008558039,1864.42,0.00014794,2]
[346496419,1735008558141,1621.28,0.00014419,2]
[346496420,1735008558391,1621.28,0.00014693,2]
[346496421,1735008558652,1621.28,0.00014967,2]
[346496422,1735008558830,500.0,0.00013698,2]
[346496423,1735008559075,500.0,0.00013972,2]
[346496424,1735008559322,500.0,0.00014246,2]
[346496425,1735008559570,500.0,0.0001452,2]
[346496426,1735008559921,500.0,0.00014794,2]
[346496427,1735008560232,500.0,0.00013698,2]
[346496428,1735008560429,2477.34,0.00014419,2]
[346496429,1735008560483,500.0,0.00013698,2]
[346496430,1735008560738,500.0,0.00013972,2]
[346496431,1735008560784,2477.34,0.00014693,2]
[346496432,1735008560856,1866.12,0.00013698,2]
[346496433,1735008560983,500.0,0.00014246,2]
[346496434,1735008561029,2477.34,0.00014967,2]
[346496435,1735008561124,1866.12,0.00013972,2]
[346496436,1735008561239,500.0,0.0001452,2]
[346496437,1735008561396,1866.12,0.00014246,2]
[346496438,1735008561443,1653.95,0.00013698,2]
[346496439,1735008561506,500.0,0.00014794,2]
[346496440,1735008561651,1866.12,0.0001452,2]
[346496441,1735008561699,1653.95,0.00013972,2]
[346496442,1735008561919,1653.95,0.00014246,2]
[346496443,1735008561967,1866.12,0.00014794,2]
[346496444,1735008562162,1653.95,0.0001452,2]
[346496445,1735008562416,1653.95,0.00014794,2]
[346496446,1735008562777,734.04,0.00013698,2]
[346496447,1735008563049,734.04,0.00013972,2]
[346496448,1735008563306,734.04,0.00014246,2]
[346496449,1735008563607,734.04,0.0001452,2]
[346496450,1735008563655,500.0,0.00013698,2]
[346496451,1735008563859,734.04,0.00014794,2]
[346496452,1735008564338,500.0,0.00013698,2]
[346496453,1735008564593,500.0,0.00013972,2]
[346496454,1735008565232,500.0,0.00014246,2]
[346496455,1735008565325,500.0,0.0001452,2]
[346496456,1735008565405,576.04,0.00013698,2]
[346496457,1735008565486,500.0,0.00014794,2]
[346496458,1735008567011,500.0,0.00013698,2]
[346496459,1735008569111,500.0,0.00013698,2]
[346496460,1735008569180,699.42,0.00013698,2]
[346496461,1735008569230,527.02,0.00013698,2]
[346496462,1735008569351,500.0,0.00013972,2]
[346496463,1735008569415,500.0,0.00013698,2]
[346496464,1735008569463,699.42,0.00013972,2]
[346496465,1735008569510,527.02,0.00013972,2]
[346496466,1735008569614,500.0,0.00014246,2]
[346496467,1735008569684,699.42,0.00014246,2]
[346496468,1735008569736,527.02,0.00014246,2]
[346496469,1735008569892,500.0,0.0001452,2]
[346496470,1735008569943,699.42,0.0001452,2]
[346496471,1735008570075,527.02,0.0001452,2]
[346496472,1735008570125,500.0,0.00014794,2]
[346496473,1735008570325,699.42,0.00014794,2]
[346496474,1735008570369,527.02,0.00014794,2]
[346496475,1735008570412,1160.94,0.00013698,2]
[346496476,1735008570658,1160.94,0.00013972,2]
[346496477,1735008570703,6057.57,0.00014419,2]
[346496478,1735008570952,1160.94,0.00014246,2]
[346496479,1735008571026,6057.57,0.00014693,2]
[346496480,1735008571201,1160.94,0.0001452,2]
[346496481,1735008571248,6057.57,0.00014967,2]
[346496482,1735008571381,2858.23,0.00014419,2]
[346496483,1735008571440,1160.94,0.00014794,2]
[346496484,1735008571648,2858.23,0.00014693,2]
[346496485,1735008571914,500.0,0.00013698,2]
[346496486,1735008571970,2858.23,0.00014967,2]
[346496487,1735008572157,500.0,0.00013972,2]
[346496488,1735008572574,500.0,0.00014246,2]
[346496489,1735008572618,500.0,0.00013698,2]
[346496490,1735008572828,500.0,0.00013972,2]
[346496491,1735008573105,500.0,0.00014246,2]
[346496492,1735008573180,500.0,0.0001452,2]
[346496493,1735008573381,500.0,0.0001452,2]
[346496494,1735008573505,500.0,0.00014794,2]
[346496495,1735008573645,500.0,0.00014794,2]
[346496496,1735008577140,500.0,0.00013698,2]
[346496497,1735008577393,500.0,0.00013972,2]
[346496498,1735008577677,500.0,0.00014246,2]
[346496499,1735008577823,1912.76,0.00013698,2]
[346496500,1735008578071,1912.76,0.00013972,2]
[346496501,1735008578295,500.0,0.0001452,2]
[346496502,1735008578344,1014.78,0.00013698,2]
[346496503,1735008578390,1912.76,0.00014246,2]
[346496504,1735008578563,500.0,0.00014794,2]
[346496505,1735008578613,1014.78,0.00013972,2]
[346496506,1735008578663,1912.76,0.0001452,2]
[346496507,1735008578716,1654.91,0.00014419,2]
[346496508,1735008578871,1912.76,0.00014794,2]
[346496509,1735008578919,1654.91,0.00014693,2]
[346496510,1735008579138,1654.91,0.00014967,2]
[346496511,1735008579280,1014.78,0.00014246,2]
[346496512,1735008579515,1014.78,0.0001452,2]
[346496513,1735008579769,1014.78,0.00014794,2]
[346496514,1735008579817,1424.96,0.00014419,2]
[346496515,1735008580022,1424.96,0.00014693,2]
[346496516,1735008580173,500.0,0.00013698,2]
[346496517,1735008580269,1424.96,0.00014967,2]
[346496518,1735008580426,815.11,0.00013698,2]
[346496519,1735008580487,500.0,0.00013972,2]
[346496520,1735008580680,815.11,0.00013972,2]
[346496521,1735008580729,500.0,0.00014246,2]
[346496522,1735008580951,815.11,0.00014246,2]
[346496523,1735008581005,500.0,0.0001452,2]
[346496524,1735008581051,500.0,0.00013698,2]
[346496525,1735008581134,500.0,0.00013698,2]
[346496526,1735008581230,500.0,0.00014794,2]
[346496527,1735008581399,500.0,0.00013972,2]
[346496528,1735008581470,815.11,0.0001452,2]
[346496529,1735008581668,500.0,0.00014246,2]
[346496530,1735008581746,815.11,0.00014794,2]
[346496531,1735008581827,1313.51,0.00013698,2]
[346496532,1735008581885,500.0,0.00013698,2]
[346496533,1735008581943,500.0,0.0001452,2]
[346496534,1735008582103,500.0,0.00013972,2]
[346496535,1735008582149,1313.51,0.00013972,2]
[346496536,1735008582216,500.0,0.00014794,2]
[346496537,1735008582359,500.0,0.00014246,2]
[346496538,1735008582405,1313.51,0.00014246,2]
[346496539,1735008582608,500.0,0.0001452,2]
[346496540,1735008582654,1313.51,0.0001452,2]
[346496541,1735008582860,500.0,0.00014794,2]
[346496542,1735008582952,1313.51,0.00014794,2]
[346496543,1735008583207,561.79,0.00013698,2]
[346496544,1735008583467,561.79,0.00013972,2]
[346496545,1735008583710,561.79,0.00014246,2]
[346496546,1735008583954,561.79,0.0001452,2]
[346496547,1735008584217,561.79,0.00014794,2]
[346496548,1735008585191,500.0,0.00013698,2]
[346496549,1735008585441,500.0,0.00013972,2]
[346496550,1735008585679,500.0,0.00014246,2]
[346496551,1735008586037,500.0,0.00013698,2]
[346496552,1735008586101,500.0,0.0001452,2]
[346496553,1735008586165,500.0,0.00013972,2]
[346496554,1735008586227,500.0,0.00014794,2]
[346496555,1735008586277,2783.2,0.00013698,2]
[346496556,1735008586370,500.0,0.00014246,2]
[346496557,1735008586476,2783.2,0.00013972,2]
[346496558,1735008586623,500.0,0.0001452,2]
[346496559,1735008586791,2783.2,0.00014246,2]
[346496560,1735008586879,500.0,0.00014794,2]
[346496561,1735008587061,2783.2,0.0001452,2]
[346496562,1735008587300,2783.2,0.00014794,2]
[346496563,1735008587762,1450.9,0.00014419,2]
[346496564,1735008588018,1450.9,0.00014693,2]
[346496565,1735008588074,500.0,0.00013698,2]
[346496566,1735008588301,500.0,0.00013972,2]
[346496567,1735008588347,1450.9,0.00014967,2]
[346496568,1735008588538,500.0,0.00014246,2]
[346496569,1735008588794,500.0,0.0001452,2]
[346496570,1735008589037,500.0,0.00014794,2]
[346496571,1735008590380,4614.94,0.00014419,2]
[346496572,1735008590449,2679.88,0.00013698,2]
[346496573,1735008590724,2679.88,0.00013972,2]
[346496574,1735008590785,4614.94,0.00014693,2]
[346496575,1735008590988,2679.88,0.00014246,2]
[346496576,1735008591049,4614.94,0.00014967,2]
[346496577,1735008591284,2679.88,0.0001452,2]
[346496578,1735008591536,2679.88,0.00014794,2]
[346496579,1735008592482,500.0,0.00013698,2]
[346496580,1735008592771,500.0,0.00013972,2]
[346496581,1735008592828,500.0,0.00013698,2]
[346496582,1735008593018,500.0,0.00014246,2]
[346496583,1735008593290,500.0,0.0001452,2]
[346496584,1735008593554,500.0,0.00014794,2]
[346496585,1735008595507,500.0,0.00013698,2]
[346496586,1735008595762,500.0,0.00013972,2]
[346496587,1735008596416,500.0,0.00014246,2]
[346496588,1735008596485,500.0,0.0001452,2]
[346496589,1735008596582,500.0,0.00014794,2]
[346496590,1735008597364,3111.43,0.00013698,2]
[346496591,1735008597626,3111.43,0.00013972,2]
[346496592,1735008597686,500.0,0.00013698,2]
[346496593,1735008597880,3111.43,0.00014246,2]
[346496594,1735008598127,3111.43,0.0001452,2]
[346496595,1735008598396,3111.43,0.00014794,2]
[346496596,1735008598559,500.0,0.00013698,2]
[346496597,1735008601413,500.0,0.00013698,2]
[346496598,1735008601716,500.0,0.00013972,2]
[346496599,1735008601911,1046.71,0.00013698,2]
[346496600,1735008602044,500.0,0.00014246,2]
[346496601,1735008602208,1046.71,0.00013972,2]
[346496602,1735008602321,500.0,0.0001452,2]
[346496603,1735008602502,1046.71,0.00014246,2]
[346496604,1735008602595,500.0,0.00014794,2]
[346496605,1735008603492,1046.71,0.0001452,2]
[346496606,1735008603592,1046.71,0.00014794,2]
[346496607,1735008603649,500.0,0.00013698,2]
[346496608,1735008603732,500.0,0.00013972,2]
[346496609,1735008603804,334.92825666,0.00014246,2]
[346496610,1735008604436,1608.46175252,0.00014967,2]
[346496611,1735008605354,500.0,0.00013698,2]
[346496612,1735008605639,500.0,0.00013972,2]
[346496613,1735008605901,500.0,0.00014246,2]
[346496614,1735008606067,500.0,0.00013698,2]
[346496615,1735008606172,500.0,0.0001452,2]
[346496616,1735008606793,500.0,0.00014794,2]
[346496617,1735008608460,596.41,0.00013698,2]
[346496618,1735008608742,596.41,0.00013972,2]
[346496619,1735008608983,596.41,0.00014246,2]
[346496620,1735008609165,1152.57,0.00014419,2]
[346496621,1735008609233,596.41,0.0001452,2]
[346496622,1735008609352,679.78,0.00013698,2]
[346496623,1735008609419,1152.57,0.00014693,2]
[346496624,1735008609574,596.41,0.00014794,2]
[346496625,1735008609683,1152.57,0.00014967,2]
[346496626,1735008609735,679.78,0.00013972,2]
[346496627,1735008609967,679.78,0.00014246,2]
[346496628,1735008610233,679.78,0.0001452,2]
[346496629,1735008610497,679.78,0.00014794,2]
[346496630,1735008611187,500.0,0.00013698,2]
[346496631,1735008611241,9107.0483,0.000149,2]
[346496632,1735008612638,4654.94,0.00013698,2]
[346496633,1735008612914,4654.94,0.00013972,2]
[346496634,1735008612964,9552.85,0.00014516,2]
[346496635,1735008613163,4654.94,0.00014246,2]
[346496636,1735008613406,500.0,0.00013698,2]
[346496637,1735008613457,4654.94,0.0001452,2]
[346496638,1735008613646,3888.0,0.00013931,2]
[346496639,1735008613699,4654.94,0.00014794,2]
[346496640,1735008613998,500.0,0.00013698,2]
[346496641,1735008614239,500.0,0.00013972,2]
[346496642,1735008614709,500.0,0.00014246,2]
[346496643,1735008614959,500.0,0.0001452,2]
[346496644,1735008615360,500.0,0.00014794,2]
[346496645,1735008616275,500.0,0.00013698,2]
[346496646,1735008616568,500.0,0.00013698,2]
[346496647,1735008617065,617.76,0.00013698,2]
[346496648,1735008617127,500.0,0.00013972,2]
[346496649,1735008617195,617.76,0.00013972,2]
[346496650,1735008617248,500.0,0.00014246,2]
[346496651,1735008617308,500.0,0.00014419,2]
[346496652,1735008617373,500.0,0.0001452,2]
[346496653,1735008617426,617.76,0.00014246,2]
[346496654,1735008617482,500.0,0.00014693,2]
[346496655,1735008617580,500.0,0.00014794,2]
[346496656,1735008617644,500.0,0.00014967,2]
[346496657,1735008617725,617.76,0.0001452,2]
[346496658,1735008617803,1709.85,0.00014419,2]
[346496659,1735008617873,1020.0,0.00015,2]
[346496660,1735008617987,617.76,0.00014794,2]
[346496661,1735008618061,1709.85,0.00014693,2]
[346496662,1735008618325,1709.85,0.00014967,2]
[346496663,1735008619291,1880.44,0.00013698,2]
[346496664,1735008619550,1880.44,0.00013972,2]
[346496665,1735008619804,1880.44,0.00014246,2]
[346496666,1735008620039,1880.44,0.0001452,2]
[346496667,1735008620092,150.0,0.00013931,2]
[346496668,1735008620383,1880.44,0.00014794,2]
[346496669,1735008620642,545.53,0.00013698,2]
[346496670,1735008620762,500.0,0.00013698,2]
[346496671,1735008620898,545.53,0.00013972,2]
[346496672,1735008621122,471.51828604,0.00013972,2]
[346496673,1735008621188,500.0,0.00013698,2]
[346496674,1735008621254,545.53,0.00014246,2]
[346496675,1735008621410,500.0,0.00013972,2]
[346496676,1735008621474,545.53,0.0001452,2]
[346496677,1735008621656,500.0,0.00014246,2]
[346496678,1735008621765,545.53,0.00014794,2]
[346496679,1735008621913,500.0,0.0001452,2]
[346496680,1735008622164,500.0,0.00014794,2]
[346496681,1735008622468,579.18,0.00013698,2]
[346496682,1735008622720,579.18,0.00013972,2]
[346496683,1735008622969,579.18,0.00014246,2]
[346496684,1735008623228,579.18,0.0001452,2]
[346496685,1735008623460,579.18,0.00014794,2]
[346496686,1735008624468,1121.52,0.00013698,2]
[346496687,1735008624734,1121.52,0.00013972,2]
[346496688,1735008625002,1121.52,0.00014246,2]
[346496689,1735008625053,500.0,0.00013698,2]
[346496690,1735008625257,1121.52,0.0001452,2]
[346496691,1735008625309,500.0,0.00013972,2]
[346496692,1735008625509,1121.52,0.00014794,2]
[346496693,1735008625748,500.0,0.00014246,2]
[346496694,1735008625896,790.4,0.00014419,2]
[346496695,1735008626050,500.0,0.0001452,2]
[346496696,1735008626153,790.4,0.00014693,2]
[346496697,1735008626357,500.0,0.00013698,2]
[346496698,1735008626429,790.4,0.00014967,2]
[346496699,1735008626700,500.0,0.00013698,2]
[346496700,1735008627011,500.0,0.00013972,2]
[346496701,1735008627366,500.0,0.00014246,2]
[346496702,1735008627480,500.0,0.0001452,2]
[346496703,1735008627730,500.0,0.00014794,2]
[346496704,1735008627957,500.0,0.00013698,2]
[346496705,1735008628090,500.0,0.00014794,2]
[346496706,1735008628145,793.94,0.00013698,2]
[346496707,1735008628358,793.94,0.00013972,2]
[346496708,1735008628625,793.94,0.00014246,2]
[346496709,1735008628915,793.94,0.0001452,2]
[346496710,1735008629160,793.94,0.00014794,2]
[346496711,1735008630490,500.0,0.00013698,2]
[346496712,1735008630721,500.0,0.00013972,2]
[346496713,1735008630829,500.0,0.00013698,2]
[346496714,1735008630977,500.0,0.00014246,2]
[346496715,1735008631125,500.0,0.00013972,2]
[346496716,1735008631269,500.0,0.0001452,2]
[346496717,1735008631373,500.0,0.00014246,2]
[346496718,1735008631553,500.0,0.00014794,2]
[346496723,1735008631631,500.0,0.0001452,2]
[346496728,1735008631948,-500.0,0.00015067,2]
[346496729,1735008631971,-426.1785868,0.00015067,2]
[346496730,1735008631982,-500.0,0.00015067,2]
[346496731,1735008631991,-566.87,0.00015067,2]
[346496732,1735008632001,-678.16,0.00015068,2]
[346496733,1735008632011,-396.89592208,0.00015068,2]
[346496734,1735008632021,-500.0,0.00015068,2]
[346496735,1735008632031,-466.45174816,0.00015068,2]
[346496736,1735008632040,-500.0,0.00015068,2]
[346496737,1735008632051,-702.02,0.00015068,2]
[346496738,1735008632060,-500.0,0.00015068,2]
[346496739,1735008632070,-567.78540949,0.00015068,2]
[346496740,1735008632079,-193.99631767,0.00015068,2]
[346496741,1735008632089,-500.0,0.00015068,2]
[346496742,1735008632098,-681.87,0.00015068,2]
[346496743,1735008632107,-500.0,0.00015068,2]
[346496744,1735008632117,-637.62,0.00015068,2]
[346496745,1735008632127,-500.0,0.00015068,2]
[346496746,1735008632136,-500.0,0.00015068,2]
[346496747,1735008632145,-502.56663584,0.00015068,2]
[346496748,1735008632200,1321.74,0.00013698,2]
[346496750,1735008632258,500.0,0.00014794,2]
[346496753,1735008632275,-232.14336416,0.00015068,2]
[346496755,1735008632285,-553.61,0.00015068,2]
[346496757,1735008632294,-500.0,0.00015068,2]
[346496759,1735008632303,-21.94107999,0.00015068,2]
[346496764,1735008632364,1321.74,0.00013972,2]
[346496765,1735008632392,-478.05892001,0.00015068,2]
[346496766,1735008632402,-500.0,0.00015068,2]
[346496767,1735008632412,-500.0,0.00015068,2]
[346496768,1735008632421,-500.0,0.00015068,2]
[346496769,1735008632430,-27.41191318,0.00015068,2]
[346496771,1735008632482,1124.27,0.00013698,2]
[346496779,1735008632547,1321.74,0.00014246,2]
[346496787,1735008632618,1124.27,0.00013972,2]
[346496794,1735008632676,1321.74,0.0001452,2]
[346496799,1735008632844,1124.27,0.00014246,2]
[346496800,1735008632914,1321.74,0.00014794,2]
[346496801,1735008632983,1436.78,0.00014419,2]
[346496802,1735008633109,1124.27,0.0001452,2]
[346496803,1735008633251,1436.78,0.00014693,2]
[346496804,1735008633401,1124.27,0.00014794,2]
[346496805,1735008633502,1436.78,0.00014967,2]
[346496806,1735008633678,500.0,0.00013698,2]
[346496807,1735008634235,648.3,0.00013698,2]
[346496808,1735008634514,648.3,0.00013972,2]
[346496809,1735008634797,648.3,0.00014246,2]
[346496810,1735008635054,648.3,0.0001452,2]
[346496811,1735008635297,648.3,0.00014794,2]
[346496812,1735008636323,500.0,0.00014419,2]
[346496813,1735008636600,500.0,0.00014693,2]
[346496814,1735008637132,525.44,0.00013698,2]
[346496815,1735008637185,500.0,0.00014967,2]
[346496816,1735008637649,525.44,0.00013972,2]
[346496817,1735008637734,525.44,0.00014246,2]
[346496818,1735008637811,-1251.75,0.00015067,2]
[346496819,1735008637822,-472.58808682,0.00015068,2]
[346496820,1735008637832,-500.0,0.00015068,2]
[346496821,1735008637842,-500.0,0.00015068,2]
[346496822,1735008637851,-284.16806515,0.00015068,2]
[346496823,1735008637861,-500.0,0.00015068,2]
[346496824,1735008637870,-500.0,0.00015068,2]
[346496825,1735008637880,-500.0,0.00015068,2]
[346496826,1735008637889,-553.82,0.00015068,2]
[346496827,1735008637899,-500.0,0.00015068,2]
[346496828,1735008637908,-500.0,0.00015068,2]
[346496829,1735008637917,-500.0,0.00015068,2]
[346496830,1735008637927,-500.0,0.00015068,2]
[346496831,1735008637936,-500.0,0.00015068,2]
[346496832,1735008637946,-637.23,0.00015068,2]
[346496833,1735008637956,-500.0,0.00015068,2]
[346496834,1735008637965,-500.0,0.00015068,2]
[346496839,1735008638214,-500.0,0.00015068,2]
[346496843,1735008638352,-566.15,0.00015068,2]
[346496844,1735008638362,-2027.11,0.00015068,2]
[346496845,1735008638376,-500.0,0.00015068,2]
[346496846,1735008638386,-500.0,0.00015068,2]
[346496847,1735008638395,-500.0,0.00015068,2]
[346496848,1735008638404,-500.0,0.00015068,2]
[346496849,1735008638416,-500.0,0.00015068,2]
[346496850,1735008638425,-500.0,0.00015068,2]
[346496851,1735008638434,-500.0,0.00015068,2]
[346496852,1735008638444,-500.0,0.00015068,2]
[346496853,1735008638453,-816.78,0.00015068,2]
[346496854,1735008638463,-577.62,0.00015068,2]
[346496855,1735008638472,-500.0,0.00015068,2]
[346496856,1735008638481,-500.0,0.00015068,2]
[346496857,1735008638491,-500.0,0.00015068,2]
[346496858,1735008638500,-500.0,0.00015068,2]
[346496859,1735008638510,-500.0,0.00015068,2]
[346496860,1735008638520,-542.24,0.00015068,2]
[346496861,1735008638530,-500.0,0.00015068,2]
[346496862,1735008638539,-500.0,0.00015068,2]
[346496863,1735008638548,-500.0,0.00015068,2]
[346496864,1735008638558,-500.0,0.00015068,2]
[346496865,1735008638567,-970.89,0.00015068,2]
[346496866,1735008638575,-500.0,0.00015068,2]
[346496867,1735008638585,-695.8,0.00015068,2]
[346496868,1735008638594,-500.0,0.00015068,2]
[346496869,1735008638603,-950.94,0.00015068,2]
[346496870,1735008638612,-838.62,0.00015068,2]
[346496871,1735008638621,-500.0,0.00015068,2]
[346496872,1735008638630,-523.84,0.00015068,2]
[346496873,1735008638640,-500.0,0.00015068,2]
[346496874,1735008638649,-500.0,0.00015068,2]
[346496875,1735008638658,-500.0,0.00015068,2]
[346496876,1735008638667,-500.0,0.00015068,2]
[346496877,1735008638677,-633.5,0.00015068,2]
[346496878,1735008638686,-556.68548718,0.00015068,2]
[346496879,1735008638698,-27.53451282,0.00015068,2]
[346496880,1735008638707,-500.0,0.00015068,2]
[346496881,1735008638716,-432.46548718,0.00015068,2]
[346496882,1735008638727,-312.31536098,0.00015068,2]
[346496883,1735008638767,-62.71915184,0.00015068,2]
[346496884,1735008638777,-500.0,0.00015068,2]
[346496885,1735008638787,-774.07,0.00015068,2]
[346496886,1735008638797,-500.0,0.00015068,2]
[346496887,1735008638806,-1274.61,0.00015068,2]
[346496888,1735008638815,-500.0,0.00015068,2]
[346496889,1735008638826,-801.02,0.00015068,2]
[346496890,1735008638835,-500.0,0.00015068,2]
[346496891,1735008638844,-617.6,0.00015068,2]
[346496892,1735008638853,-643.35,0.00015068,2]
[346496893,1735008638862,-558.06,0.00015068,2]
[346496894,1735008638871,-500.0,0.00015068,2]
[346496895,1735008638881,-500.0,0.00015068,2]
[346496896,1735008638890,-500.0,0.00015068,2]
[346496897,1735008638899,-500.0,0.00015068,2]
[346496898,1735008638908,-500.0,0.00015068,2]
[346496899,1735008638917,-500.0,0.00015068,2]
[346496900,1735008638927,-1193.88,0.00015068,2]
[346496901,1735008638936,-623.63,0.00015068,2]
[346496902,1735008638945,-500.0,0.00015068,2]
[346496903,1735008638954,-500.0,0.00015068,2]
[346496904,1735008638963,-500.0,0.00015068,2]
[346496905,1735008638972,-506.78,0.00015068,2]
[346496906,1735008638981,-500.0,0.00015068,2]
[346496907,1735008638991,-500.0,0.00015068,2]
[346496908,1735008639000,-930.18,0.00015068,2]
[346496909,1735008639009,-500.0,0.00015068,2]
[346496910,1735008639019,-509.52,0.00015068,2]
[346496911,1735008639028,-559.04,0.00015068,2]
[346496912,1735008639038,-500.13,0.00015068,2]
[346496913,1735008639048,-500.0,0.00015068,2]
[346496914,1735008639058,-512.65,0.00015068,2]
[346496915,1735008639067,-500.0,0.00015068,2]
[346496916,1735008639076,-500.0,0.00015068,2]
[346496917,1735008639085,-500.0,0.00015068,2]
[346496918,1735008639094,-1125.58,0.00015068,2]
[346496919,1735008639103,-590.19,0.00015068,2]
[346496920,1735008639113,-501.25944768,0.00015068,2]
[346496921,1735008639122,-500.0,0.00015068,2]
[346496922,1735008639132,-508.91,0.00015068,2]
[346496923,1735008639141,-1210.74,0.00015068,2]
[346496924,1735008639150,-558.07,0.00015068,2]
[346496925,1735008639159,-568.34,0.00015068,2]
[346496926,1735008639169,-500.0,0.00015068,2]
[346496927,1735008639178,-568.34,0.00015068,2]
[346496928,1735008639187,-500.0,0.00015068,2]
[346496929,1735008639196,-1363.69,0.00015068,2]
[346496930,1735008639206,-500.0,0.00015068,2]
[346496931,1735008639216,-500.0,0.00015068,2]
[346496932,1735008639225,-782.28,0.00015068,2]
[346496933,1735008639234,-632.48,0.00015068,2]
[346496934,1735008639244,-667.95,0.00015068,2]
[346496935,1735008639253,-500.0,0.00015068,2]
[346496936,1735008639262,-738.63,0.00015068,2]
[346496937,1735008639272,-691.09,0.00015068,2]
[346496938,1735008639282,-933.0,0.00015068,2]
[346496939,1735008639291,-500.0,0.00015068,2]
[346496940,1735008639300,-500.0,0.00015068,2]
[346496941,1735008639310,-500.0,0.00015068,2]
[346496942,1735008639319,-794.29,0.00015068,2]
[346496943,1735008639328,-500.0,0.00015068,2]
[346496944,1735008639338,-500.0,0.00015068,2]
[346496945,1735008639348,-500.0,0.00015068,2]
[346496946,1735008639358,-500.0,0.00015068,2]
[346496947,1735008639367,-500.0,0.00015068,2]
[346496948,1735008639376,-500.0,0.00015068,2]
[346496949,1735008639385,-500.0,0.00015068,2]
[346496950,1735008639395,-500.0,0.00015068,2]
[346496951,1735008639404,-1143.78,0.00015068,2]
[346496952,1735008639414,-500.0,0.00015068,2]